[Event "Turkish Club Cup 2019"]
[Site "Konya"]
[Date "2019.07.18"]
[Round "4"]
[White "Caputcuoglu, Zeki Berke"]
[Black "Yalcin, Ozgun"]
[Result "1/2-1/2"]
[ECO "B79"]
[WhiteElo "2010"]
[BlackElo "1881"]
[Annotator "NA"]
[PlyCount "60"]
[EventDate "2019.07.16"]
[EventType "team-tourn"]
[EventCountry "TUR"]
[SourceTitle "playchess.com"]
[Source "ChessBase"]
[SourceQuality "1"]
[TimeControl "5400+30"]

1. Nf3 {[%emt 0:00:30]} c5 {[%emt 0:01:30]} 2. e4 {[%emt 0:00:00]} d6 {[%emt 0:00:30]} 3. d4 {[%emt 0:00:00]} cxd4 {[%emt 0:00:00]} 4. Nxd4 {[%emt 0:00:30]} Nf6 {[%emt 0:00:00]} 5. Nc3 {[%emt 0:01:30]} g6 {[%emt 0:00:00]} 6. Be3 {[%emt 0:00:00]} Bg7 {[%emt 0:00:00]} 7. f3 {[%emt 0:00:00]} O-O {[%emt 0:00:00]} 8. Qd2 {[%emt 0:00:30]} Nc6 {[%emt 0:00:00]} 9. Bc4 {[%emt 0:00:30]} Bd7 {[%emt 0:00:30]} 10. O-O-O {[%emt 0:00:30]} Qa5 {[%emt 0:00:00]} 11. Bb3 {[%emt 0:00:30]} Rfc8 {[%emt 0:00:00]} 12. g4 {[%emt 0:07:30]} Ne5 {[%emt 0:05:30]} 13. h4 {[%emt 0:04:30]} Rc4 {[%emt 0:21:30]} 14. Bxc4 {[%emt 0:04:30]} Nxc4 {[%emt 0:03:30]} 15. Qd3 {[%emt 0:00:00]} Qb4 {[%emt 0:00:30]} 16. Nb3 {[%emt 0:02:00]} Nxe4 {[%emt 0:02:30]} 17. fxe4 {[%emt 0:13:30]} Bxc3 {[%emt 0:00:30]} 18. Bd4 {[%emt 0:00:00]} Bxd4 {[%emt 0:02:30]} 19. Qxd4 {[%emt 0:00:00]} Bxg4 {[%emt 0:11:30]} 20. Rdf1 {[%emt 0:06:30]} h5 {[%emt 0:07:30]} 21. Rh2 {[%emt 0:09:30]} Qb5 {[%emt 0:03:30]} 22. Rhf2 {[%emt 0:01:30]} Ne5 {[%emt 0:02:30]} 23. Kb1 {[%emt 0:07:30]} a6 {[%emt 0:05:30]} 24. Nc1 {[%emt 0:00:30]} Be6 {[%emt 0:04:30]} 25. Nd3 {[%emt 0:02:30]} Qc4 {[%emt 0:08:30]} 26. Qxc4 {[%emt 0:01:30]} Bxc4 {[%emt 0:00:46]} 27. Rd1 {[%emt 0:00:30]} Ng4 {[%emt 0:02:03]} 28. Rfd2 {[%emt 0:00:30]} f6 {[%emt 0:01:22]} 29. Nf4 {[%emt 0:04:30]} Bf7 {[%emt 0:00:53]} 30. b3 {[%emt 0:04:30]} b5 {[%emt 0:01:13]} 1/2-1/2

[Event "Turkish Club Cup 2019"]
[Site "Konya"]
[Date "2019.07.18"]
[Round "4"]
[White "Cakiroglu, Metin"]
[Black "Eroz, Enis"]
[Result "1/2-1/2"]
[ECO "B26"]
[WhiteElo "1970"]
[BlackElo "1618"]
[Annotator "NA RC"]
[PlyCount "111"]
[EventDate "2019.07.16"]
[EventType "team-tourn"]
[EventCountry "TUR"]
[SourceTitle "playchess.com"]
[Source "ChessBase"]
[SourceQuality "1"]
[TimeControl "5400+30"]

1. e4 {[%emt 0:00:30]} c5 {[%emt 0:00:30]} 2. Nc3 {[%emt 0:00:30]} Nc6 {[%emt 0:00:30]} 3. g3 {[%emt 0:00:00]} g6 {[%emt 0:00:00]} 4. Bg2 {[%emt 0:00:00]} Bg7 {[%emt 0:00:00]} 5. d3 {[%emt 0:00:00]} d6 {[%emt 0:00:30]} 6. Be3 {[%emt 0:00:00]} h5 {[%emt 0:00:30]} 7. h3 {[%emt 0:00:00]} Nf6 {[%emt 0:00:30]} 8. Qd2 {[%emt 0:00:00]} Bd7 {[%emt 0:01:30]} 9. Nge2 {[%emt 0:00:30]} Qa5 {[%emt 0:00:30]} 10. a4 {[%emt 0:00:30]} a6 {[%emt 0:03:30]} 11. Ra3 {[%emt 0:00:00]} e5 {[%emt 0:10:30]} 12. Rb3 {[%emt 0:00:00]} Nd4 {[%emt 0:02:30]} 13. Ra3 {[%emt 0:01:30]} Qb6 {[%emt 0:06:30]} 14. Nd1 {[%emt 0:00:30]} Be6 {[%emt 0:01:30]} 15. Nc1 {[%emt 0:11:30]} h4 {[%emt 0:03:30]} 16. c3 {[%emt 0:00:30]} Nc6 {[%emt 0:01:30]} 17. g4 {[%emt 0:00:30]} Rd8 {[%emt 0:02:30]} 18. b4 {[%emt 0:01:30]} Nd7 {[%emt 0:01:30]} 19. Nb3 {[%emt 0:01:30]} Bxb3 {[%emt 0:03:30]} 20. Rxb3 {[%emt 0:04:30]} Qc7 {[%emt 0:01:30]} 21. Nb2 {[%emt 0:03:30]} Ne7 {[%emt 0:10:30]} 22. O-O {[%emt 0:02:30]} f5 {[%emt 0:02:30]} 23. exf5 {[%emt 0:05:30]} gxf5 {[%emt 0:00:30]} 24. gxf5 {[%emt 0:01:30]} Nxf5 {[%emt 0:01:30]} 25. Bg5 {[%emt 0:01:30]} Rb8 {[%emt 0:02:30]} 26. bxc5 {[%emt 0:02:30]} Nxc5 {[%emt 0:01:30]} 27. Rb4 {[%emt 0:00:00]} Ne6 {[%emt 0:07:30]} 28. Bd5 {[%emt 0:01:00]} Kd7 {[%emt 0:01:30]} 29. Nc4 {[%emt 0:03:30]} b5 {[%emt 0:00:00]} 30. Na3 {[%emt 0:02:30]} Bh6 {[%emt 0:06:00]} 31. Bxh6 {[%emt 0:01:30]} Rxh6 {[%emt 0:00:30]} 32. axb5 {[%emt 0:05:30]} Rg6+ {[%emt 0:01:30]} 33. Kh2 {[%emt 0:01:30]} Qc5 {[%emt 0:05:30]} 34. Be4 {[%emt 0:02:30]} Rf8 {[%emt 0:02:30]} 35. Rg1 {[%emt 0:18:30]} Ng3 {[%emt 0:04:47]} 36. Bc6+ {[%emt 0:01:30]} Ke7 {[%emt 0:00:54]} 37. d4 {[%emt 0:00:30]} exd4 {[%emt 0:02:31]} 38. cxd4 {[%emt 0:00:00]} Qf5 {[%emt 0:01:41]} 39. fxg3 {[%emt 0:03:00]} hxg3+ {[%emt 0:00:33]} 40. Rxg3 {[%emt 0:00:30]} Rxg3 {[%emt 0:02:07]} 41. Kxg3 {[%emt 0:00:00]} d5 {[%emt 0:00:20]} 42. Rb3 {[%emt 0:02:00]} Rg8+ {[%emt 0:02:46]} 43. Kh2 {[%emt 0:00:00]} Ng5 {[%emt 0:01:54]} 44. Nc2 {[%emt 0:07:00]} Ne4 {[%emt 0:01:05]} 45. Qe1 {[%emt 0:06:16]} Qf4+ {[%emt 0:02:02]} 46. Kh1 {[%emt 0:00:06]} Kd8 {[%emt 0:03:03]} 47. Qa5+ {[%emt 0:01:44]} Ke7 {[%emt 0:00:12]} 48. Qa3+ {[%emt 0:02:24]} Kd8 {[%emt 0:00:04]} 49. Rf3 {[%emt 0:02:45]} Ng3+ {[%emt 0:00:48]} 50. Kg2 {[%emt 0:00:10]} Qd2+ {[%emt 0:00:23]} 51. Kg1 {[%emt 0:01:04]} Ne4+ {[%emt 0:01:09]} 52. Kf1 {[%emt 0:00:24]} Qg2+ {[%emt 0:01:17]} 53. Ke1 {[%emt 0:00:04]} Qd2+ {[%emt 0:00:08]} 54. Kf1 {[%emt 0:00:04]} Qg2+ {[%emt 0:00:46]} 55. Ke1 {[%emt 0:00:00]} Qd2+ {[%emt 0:00:11]} 56. Kf1 {[%emt 0:00:03]} 1/2-1/2

[Event "Turkish Club Cup 2019"]
[Site "Konya"]
[Date "2019.07.18"]
[Round "4"]
[White "Yasin, Hur"]
[Black "Taskaya, Muhammed"]
[Result "1/2-1/2"]
[ECO "C00"]
[WhiteElo "1953"]
[BlackElo "2011"]
[Annotator "NA RC"]
[PlyCount "106"]
[EventDate "2019.07.16"]
[EventType "team-tourn"]
[EventCountry "TUR"]
[SourceTitle "playchess.com"]
[Source "ChessBase"]
[SourceQuality "1"]
[TimeControl "5400+30"]

1. e4 {[%emt 0:00:30]} e6 {[%emt 0:00:30]} 2. Nf3 {[%emt 0:00:30]} d5 {[%emt 0:00:00]} 3. e5 {[%emt 0:00:30]} c5 {[%emt 0:00:00]} 4. b4 {[%emt 0:00:00]} cxb4 {[%emt 0:02:30]} 5. a3 {[%emt 0:00:00]} bxa3 {[%emt 0:00:00]} 6. c3 {[%emt 0:00:30]} Bd7 {[%emt 0:10:00]} 7. d4 {[%emt 0:01:30]} Nc6 {[%emt 0:09:30]} 8. Bd3 {[%emt 0:01:30]} h6 {[%emt 0:04:30]} 9. O-O {[%emt 0:00:30]} Na5 {[%emt 0:03:30]} 10. Nxa3 {[%emt 0:00:30]} a6 {[%emt 0:05:30]} 11. Nd2 {[%emt 0:02:30]} Rc8 {[%emt 0:00:30]} 12. Bb2 {[%emt 0:02:30]} Bxa3 {[%emt 0:21:30]} 13. Rxa3 {[%emt 0:01:30]} Bb5 {[%emt 0:00:30]} 14. Bxb5+ {[%emt 0:05:30]} axb5 {[%emt 0:00:00]} 15. Qa1 {[%emt 0:04:30]} b6 {[%emt 0:08:00]} 16. Rb1 {[%emt 0:03:30]} Ne7 {[%emt 0:00:30]} 17. Bc1 {[%emt 0:00:00]} Qd7 {[%emt 0:02:30]} 18. Qb2 {[%emt 0:00:00]} Nc4 {[%emt 0:04:30]} 19. Nxc4 {[%emt 0:00:30]} dxc4 {[%emt 0:00:30]} 20. Qxb5 {[%emt 0:00:30]} Qxb5 {[%emt 0:00:30]} 21. Rxb5 {[%emt 0:00:00]} Nd5 {[%emt 0:00:30]} 22. Rb1 {[%emt 0:02:00]} Kd7 {[%emt 0:03:30]} 23. Rba1 {[%emt 0:06:30]} Kc6 {[%emt 0:07:31]} 24. Kf1 {[%emt 0:00:30]} Nc7 {[%emt 0:01:28]} 25. Ra4 {[%emt 0:13:30]} Kd5 {[%emt 0:04:34]} 26. Ba3 {[%emt 0:02:30]} Ra8 {[%emt 0:03:15]} 27. Bd6 {[%emt 0:00:30]} Rxa4 {[%emt 0:00:30]} 28. Rxa4 {[%emt 0:00:00]} Nb5 {[%emt 0:00:52]} 29. Bb4 {[%emt 0:00:00]} Rc8 {[%emt 0:02:02]} 30. Ke2 {[%emt 0:01:30]} g6 {[%emt 0:01:44]} 31. Kd2 {[%emt 0:00:30]} Nc7 {[%emt 0:01:42]} 32. Ra7 {[%emt 0:04:30]} Kc6 {[%emt 0:01:34]} 33. Bd6 {[%emt 0:05:30]} Nb5 {[%emt 0:00:08]} 34. Rxf7 {[%emt 0:00:30]} Nxd6 {[%emt 0:00:58]} 35. exd6 {[%emt 0:00:30]} Kxd6 {[%emt 0:00:03]} 36. Rb7 {[%emt 0:01:30]} Kc6 {[%emt 0:01:34]} 37. Rg7 {[%emt 0:00:30]} g5 {[%emt 0:00:16]} 38. Rg6 {[%emt 0:02:30]} Kd6 {[%emt 0:00:01]} 39. Rxh6 {[%emt 0:01:30]} Ra8 {[%emt 0:00:01]} 40. Rh3 {[%emt 0:00:30]} Ra2+ {[%emt 0:00:00]} 41. Ke1 {[%emt 0:12:30]} Ra1+ {[%emt 0:00:04]} 42. Ke2 {[%emt 0:00:30]} Ra2+ {[%emt 0:00:19]} 43. Kf3 {[%emt 0:04:30]} Rc2 {[%emt 0:00:01]} 44. Kg4 {[%emt 0:02:30]} Rxf2 {[%emt 0:00:02]} 45. Rg3 {[%emt 0:00:30]} Rf5 {[%emt 0:00:01]} 46. Rf3 {[%emt 0:01:01]} b5 {[%emt 0:00:33]} 47. Re3 {[%emt 0:02:33]} Kd5 {[%emt 0:03:10]} 48. g3 {[%emt 0:00:30]} b4 {[%emt 0:00:28]} 49. cxb4 {[%emt 0:01:01]} Kxd4 {[%emt 0:00:09]} 50. Rxe6 {[%emt 0:01:06]} Rb5 {[%emt 0:00:01]} 51. Rd6+ {[%emt 0:06:45]} Kc3 {[%emt 0:00:01]} 52. h4 {[%emt 0:01:01]} gxh4 {[%emt 0:00:30]} 53. gxh4 {[%emt 0:00:00]} Kxb4 {[%emt 0:00:00]} 1/2-1/2

[Event "Turkish Club Cup 2019"]
[Site "Konya"]
[Date "2019.07.18"]
[Round "4"]
[White "Salman, Ilhan Serhat"]
[Black "Aydin, Ismail"]
[Result "1-0"]
[ECO "A49"]
[WhiteElo "1950"]
[BlackElo "1896"]
[Annotator "NA RC"]
[PlyCount "141"]
[EventDate "2019.07.16"]
[EventType "team-tourn"]
[EventCountry "TUR"]
[SourceTitle "playchess.com"]
[Source "ChessBase"]
[SourceQuality "1"]
[TimeControl "5400+30"]

1. Nf3 {[%emt 0:00:30]} Nf6 {[%emt 0:00:30]} 2. g3 {[%emt 0:00:30]} c5 {[%emt 0:01:30]} 3. d4 {[%emt 0:02:30]} cxd4 {[%emt 0:02:30]} 4. Nxd4 {[%emt 0:00:30]} g6 {[%emt 0:00:30]} 5. Bg2 {[%emt 0:00:30]} Bg7 {[%emt 0:00:30]} 6. O-O {[%emt 0:00:30]} O-O {[%emt 0:00:00]} 7. e4 {[%emt 0:12:30]} Nc6 {[%emt 0:12:00]} 8. c3 {[%emt 0:07:30]} Qb6 {[%emt 0:13:30]} 9. Nb3 {[%emt 0:02:30]} d6 {[%emt 0:00:30]} 10. Be3 {[%emt 0:00:30]} Qa6 {[%emt 0:05:30]} 11. h3 {[%emt 0:09:30]} Be6 {[%emt 0:06:30]} 12. Re1 {[%emt 0:03:30]} Rad8 {[%emt 0:00:00]} 13. Na3 {[%emt 0:01:30]} Ne5 {[%emt 0:10:00]} 14. Nd4 {[%emt 0:01:30]} Bd7 {[%emt 0:03:30]} 15. Bf1 {[%emt 0:24:30]} Qa4 {[%emt 0:00:30]} 16. Qxa4 {[%emt 0:00:30]} Bxa4 {[%emt 0:00:30]} 17. f4 {[%emt 0:00:30]} Nc6 {[%emt 0:04:30]} 18. b3 {[%emt 0:05:30]} Nxd4 {[%emt 0:03:30]} 19. Bxd4 {[%emt 0:00:30]} Bc6 {[%emt 0:09:30]} 20. Bg2 {[%emt 0:00:30]} e5 {[%emt 0:01:30]} 21. fxe5 {[%emt 0:04:38]} dxe5 {[%emt 0:00:30]} 22. Bc5 {[%emt 0:02:57]} Rfe8 {[%emt 0:00:30]} 23. Bxa7 {[%emt 0:03:01]} Rd3 {[%emt 0:01:30]} 24. Bf2 {[%emt 0:03:34]} Rxc3 {[%emt 0:02:30]} 25. Nc4 {[%emt 0:00:18]} Nh5 {[%emt 0:01:26]} 26. Rac1 {[%emt 0:02:27]} Rd3 {[%emt 0:05:07]} 27. Bf1 {[%emt 0:01:49]} Rd7 {[%emt 0:01:02]} 28. Na5 {[%emt 0:00:15]} Bh6 {[%emt 0:00:13]} 29. Be3 {[%emt 0:01:15]} Bxe3+ {[%emt 0:03:02]} 30. Rxe3 {[%emt 0:00:03]} Re6 {[%emt 0:00:42]} 31. Nxc6 {[%emt 0:02:39]} bxc6 {[%emt 0:00:57]} 32. Be2 {[%emt 0:04:00]} Rd2 {[%emt 0:01:01]} 33. Bxh5 {[%emt 0:01:01]} gxh5 {[%emt 0:00:30]} 34. a4 {[%emt 0:00:30]} h4 {[%emt 0:00:30]} 35. Ra1 {[%emt 0:01:52]} Rf6 {[%emt 0:02:46]} 36. Rf1 {[%emt 0:00:20]} Rg6 {[%emt 0:00:00]} 37. Rf2 {[%emt 0:01:14]} Rd1+ {[%emt 0:00:11]} 38. Kg2 {[%emt 0:00:00]} Rd4 {[%emt 0:00:25]} 39. Ra2 {[%emt 0:00:49]} c5 {[%emt 0:01:16]} 40. a5 {[%emt 0:00:12]} Ra6 {[%emt 0:01:04]} 41. gxh4 {[%emt 0:00:30]} Rb4 {[%emt 0:00:00]} 42. h5 {[%emt 0:00:45]} Rb5 {[%emt 0:00:00]} 43. Kg3 {[%emt 0:00:00]} Rbxa5 {[%emt 0:01:02]} 44. Rxa5 {[%emt 0:00:19]} Rxa5 {[%emt 0:00:00]} 45. Kg4 {[%emt 0:00:13]} Ra1 {[%emt 0:04:07]} 46. Kf5 {[%emt 0:00:48]} Ra3 {[%emt 0:00:40]} 47. Rc3 {[%emt 0:01:10]} Kg7 {[%emt 0:00:32]} 48. Rxc5 {[%emt 0:01:01]} Rxb3 {[%emt 0:00:05]} 49. Kg4 {[%emt 0:00:13]} Kf6 {[%emt 0:01:18]} 50. Rc6+ {[%emt 0:00:30]} Ke7 {[%emt 0:00:00]} 51. Rc7+ {[%emt 0:00:22]} Ke6 {[%emt 0:00:28]} 52. Rc6+ {[%emt 0:00:01]} Ke7 {[%emt 0:00:49]} 53. Rh6 {[%emt 0:00:50]} f6 {[%emt 0:02:35]} 54. Rxh7+ {[%emt 0:00:37]} Ke6 {[%emt 0:00:30]} 55. Ra7 {[%emt 0:00:00]} Re3 {[%emt 0:00:57]} 56. Ra6+ {[%emt 0:00:54]} Kf7 {[%emt 0:00:30]} 57. Ra7+ {[%emt 0:00:00]} Ke6 {[%emt 0:00:00]} 58. Ra6+ {[%emt 0:01:08]} Kf7 {[%emt 0:00:06]} 59. Ra7+ {[%emt 0:00:30]} Ke6 {[%emt 0:00:00]} 60. h6 {[%emt 0:00:18]} Rxe4+ {[%emt 0:00:03]} 61. Kh5 {[%emt 0:00:00]} Rd4 {[%emt 0:01:35]} 62. h7 {[%emt 0:00:00]} Rd8 {[%emt 0:00:16]} 63. Kg6 {[%emt 0:00:01]} e4 {[%emt 0:01:26]} 64. Ra6+ {[%emt 0:00:17]} Ke5 {[%emt 0:00:00]} 65. Rxf6 {[%emt 0:00:48]} e3 {[%emt 0:00:10]} 66. Rf7 {[%emt 0:00:23]} Rd6+ {[%emt 0:00:59]} 67. Kg5 {[%emt 0:00:25]} Rd8 {[%emt 0:00:06]} 68. Re7+ {[%emt 0:00:12]} Kd4 {[%emt 0:00:14]} 69. Kg6 {[%emt 0:00:04]} e2 {[%emt 0:02:22]} 70. Rxe2 {[%emt 0:00:55]} Rd6+ {[%emt 0:00:01]} 71. Kf7 {[%emt 0:02:09]} 1-0

[Event "Turkish Club Cup 2019"]
[Site "Konya"]
[Date "2019.07.18"]
[Round "4"]
[White "Celiker, Yakup"]
[Black "Sari, Serdar"]
[Result "0-1"]
[ECO "A03"]
[WhiteElo "1930"]
[BlackElo "2023"]
[Annotator "NA RC"]
[PlyCount "104"]
[EventDate "2019.07.16"]
[EventType "team-tourn"]
[EventCountry "TUR"]
[SourceTitle "playchess.com"]
[Source "ChessBase"]
[SourceQuality "1"]
[TimeControl "5400+30"]

1. f4 {[%emt 0:00:30]} d5 {[%emt 0:01:30]} 2. b3 {[%emt 0:00:00]} c5 {[%emt 0:00:30]} 3. Bb2 {[%emt 0:00:00]} Nc6 {[%emt 0:00:30]} 4. Nf3 {[%emt 0:01:30]} Nf6 {[%emt 0:00:00]} 5. e3 {[%emt 0:00:30]} Bg4 {[%emt 0:02:00]} 6. Be2 {[%emt 0:00:30]} e6 {[%emt 0:00:30]} 7. O-O {[%emt 0:03:30]} Bxf3 {[%emt 0:08:30]} 8. Bxf3 {[%emt 0:00:30]} Bd6 {[%emt 0:01:30]} 9. c4 {[%emt 0:03:30]} dxc4 {[%emt 0:19:30]} 10. bxc4 {[%emt 0:05:30]} Qb6 {[%emt 0:02:30]} 11. Bc3 {[%emt 0:00:30]} O-O {[%emt 0:09:30]} 12. Na3 {[%emt 0:01:30]} a6 {[%emt 0:14:30]} 13. Rb1 {[%emt 0:03:30]} Qc7 {[%emt 0:00:00]} 14. Qb3 {[%emt 0:00:30]} Rab8 {[%emt 0:01:00]} 15. Qb2 {[%emt 0:02:30]} Ne8 {[%emt 0:03:30]} 16. Be2 {[%emt 0:12:30]} b6 {[%emt 0:03:30]} 17. Nc2 {[%emt 0:02:30]} e5 {[%emt 0:05:30]} 18. g3 {[%emt 0:01:30]} f5 {[%emt 0:06:15]} 19. Rf2 {[%emt 0:04:30]} g6 {[%emt 0:04:36]} 20. Bf3 {[%emt 0:13:30]} e4 {[%emt 0:01:55]} 21. Be2 {[%emt 0:00:00]} Qe7 {[%emt 0:02:53]} 22. Kg2 {[%emt 0:08:00]} Nc7 {[%emt 0:02:52]} 23. a4 {[%emt 0:01:30]} a5 {[%emt 0:03:03]} 24. Rg1 {[%emt 0:05:30]} Nb4 {[%emt 0:00:48]} 25. Ne1 {[%emt 0:00:30]} Ne6 {[%emt 0:01:49]} 26. Kh1 {[%emt 0:00:30]} Qd7 {[%emt 0:01:45]} 27. Qa1 {[%emt 0:00:30]} Rf7 {[%emt 0:01:04]} 28. h3 {[%emt 0:01:30]} Kf8 {[%emt 0:01:06]} 29. Kh2 {[%emt 0:02:30]} Ke7 {[%emt 0:00:34]} 30. Qd1 {[%emt 0:03:30]} Kd8 {[%emt 0:00:36]} 31. Qb3 {[%emt 0:02:30]} Kc7 {[%emt 0:00:11]} 32. d3 {[%emt 0:00:30]} exd3 {[%emt 0:00:54]} 33. Nxd3 {[%emt 0:00:30]} Rd8 {[%emt 0:00:49]} 34. Rd1 {[%emt 0:01:26]} Qe8 {[%emt 0:00:21]} 35. Bf3 {[%emt 0:00:49]} Nf8 {[%emt 0:00:36]} 36. Ne5 {[%emt 0:00:34]} Re7 {[%emt 0:00:56]} 37. Rfd2 {[%emt 0:00:05]} Ne6 {[%emt 0:00:23]} 38. Bxb4 {[%emt 0:02:04]} cxb4 {[%emt 0:00:02]} 39. Nc6 {[%emt 0:01:03]} Nc5 {[%emt 0:00:05]} 40. Qb1 {[%emt 0:04:56]} Rdd7 {[%emt 0:00:51]} 41. Nxe7 {[%emt 0:00:42]} Qxe7 {[%emt 0:00:09]} 42. Re1 {[%emt 0:01:02]} Nxa4 {[%emt 0:00:27]} 43. e4 {[%emt 0:01:20]} Nc3 {[%emt 0:00:08]} 44. Qd3 {[%emt 0:00:00]} Bc5 {[%emt 0:01:02]} 45. Qxd7+ {[%emt 0:01:23]} Qxd7 {[%emt 0:00:30]} 46. Rxd7+ {[%emt 0:00:30]} Kxd7 {[%emt 0:00:00]} 47. g4 {[%emt 0:03:11]} fxe4 {[%emt 0:00:28]} 48. Bxe4 {[%emt 0:00:30]} Nxe4 {[%emt 0:00:30]} 49. Rxe4 {[%emt 0:00:00]} b3 {[%emt 0:00:00]} 50. f5 {[%emt 0:00:28]} gxf5 {[%emt 0:00:20]} 51. gxf5 {[%emt 0:00:30]} b2 {[%emt 0:00:00]} 52. Re1 {[%emt 0:00:06]} a4 {[%emt 0:00:00]} 0-1

[Event "Turkish Club Cup 2019"]
[Site "Konya"]
[Date "2019.07.18"]
[Round "4"]
[White "Oz, Ozan"]
[Black "Gulsoy, Mustafa Alpago"]
[Result "0-1"]
[ECO "B06"]
[WhiteElo "1923"]
[BlackElo "2069"]
[Annotator "NA RC"]
[PlyCount "48"]
[EventDate "2019.07.16"]
[EventType "team-tourn"]
[EventCountry "TUR"]
[SourceTitle "playchess.com"]
[Source "ChessBase"]
[SourceQuality "1"]
[TimeControl "5400+30"]

1. d4 {[%emt 0:00:30]} d6 {[%emt 0:00:30]} 2. Bf4 {[%emt 0:00:00]} g6 {[%emt 0:00:30]} 3. Nc3 {[%emt 0:01:00]} Bg7 {[%emt 0:00:30]} 4. e4 {[%emt 0:00:30]} c6 {[%emt 0:01:30]} 5. Qd2 {[%emt 0:00:30]} Nd7 {[%emt 0:01:30]} 6. Nf3 {[%emt 0:01:30]} e5 {[%emt 0:02:30]} 7. dxe5 {[%emt 0:00:30]} dxe5 {[%emt 0:00:30]} 8. Bg5 {[%emt 0:00:30]} Ngf6 {[%emt 0:00:30]} 9. O-O-O {[%emt 0:00:30]} Qe7 {[%emt 0:02:30]} 10. Bh6 {[%emt 0:06:30]} O-O {[%emt 0:01:30]} 11. Bxg7 {[%emt 0:09:30]} Kxg7 {[%emt 0:00:00]} 12. h4 {[%emt 0:01:30]} Nc5 {[%emt 0:05:00]} 13. Qe3 {[%emt 0:08:30]} b5 {[%emt 0:03:30]} 14. Nd2 {[%emt 0:03:30]} Ng4 {[%emt 0:08:30]} 15. Qe1 {[%emt 0:02:30]} Be6 {[%emt 0:04:30]} 16. f3 {[%emt 0:04:30]} Nf6 {[%emt 0:01:30]} 17. Kb1 {[%emt 0:15:30]} a5 {[%emt 0:04:30]} 18. g4 {[%emt 0:07:30]} b4 {[%emt 0:03:30]} 19. Ne2 {[%emt 0:00:30]} a4 {[%emt 0:01:30]} 20. Nc1 {[%emt 0:04:30]} b3 {[%emt 0:02:30]} 21. cxb3 {[%emt 0:02:30]} axb3 {[%emt 0:01:30]} 22. a3 {[%emt 0:00:00]} Na4 {[%emt 0:01:30]} 23. Qg3 {[%emt 0:11:25]} Nc3+ {[%emt 0:01:30]} 24. bxc3 {[%emt 0:01:33]} Qxa3 {[%emt 0:00:30]} 0-1

[Event "Turkish Club Cup 2019"]
[Site "Konya"]
[Date "2019.07.18"]
[Round "4"]
[White "Demirbas, Emre"]
[Black "Ersahince, Umut Utku"]
[Result "1/2-1/2"]
[ECO "C67"]
[WhiteElo "1913"]
[BlackElo "1677"]
[Annotator "NA RC"]
[PlyCount "63"]
[EventDate "2019.07.16"]
[EventType "team-tourn"]
[EventCountry "TUR"]
[SourceTitle "playchess.com"]
[Source "ChessBase"]
[SourceQuality "1"]
[TimeControl "5400+30"]

1. e4 {[%emt 0:00:30]} e5 {[%emt 0:00:30]} 2. Nf3 {[%emt 0:00:30]} Nc6 {[%emt 0:00:30]} 3. Bb5 {[%emt 0:00:00]} Nf6 {[%emt 0:00:30]} 4. O-O {[%emt 0:00:00]} Nxe4 {[%emt 0:00:00]} 5. Re1 {[%emt 0:01:30]} Nd6 {[%emt 0:00:00]} 6. Nxe5 {[%emt 0:01:30]} Be7 {[%emt 0:00:00]} 7. Bd3 {[%emt 0:00:30]} Nxe5 {[%emt 0:09:00]} 8. Rxe5 {[%emt 0:00:30]} O-O {[%emt 0:06:30]} 9. Nc3 {[%emt 0:00:30]} Bf6 {[%emt 0:02:30]} 10. Re3 {[%emt 0:00:00]} g6 {[%emt 0:06:30]} 11. b3 {[%emt 0:00:00]} Bd4 {[%emt 0:08:30]} 12. Bb2 {[%emt 0:17:30]} b6 {[%emt 0:04:30]} 13. Rh3 {[%emt 0:05:30]} Qf6 {[%emt 0:03:30]} 14. Rf3 {[%emt 0:06:30]} Qg7 {[%emt 0:04:30]} 15. Rb1 {[%emt 0:04:30]} Bb7 {[%emt 0:04:30]} 16. Rf4 {[%emt 0:02:30]} Be5 {[%emt 0:03:30]} 17. Rh4 {[%emt 0:09:30]} Rae8 {[%emt 0:10:30]} 18. f4 {[%emt 0:02:30]} Bd4+ {[%emt 0:02:30]} 19. Kh1 {[%emt 0:01:30]} Re6 {[%emt 0:08:30]} 20. Qf1 {[%emt 0:09:30]} Rfe8 {[%emt 0:02:30]} 21. Rh3 {[%emt 0:12:30]} Qf6 {[%emt 0:01:53]} 22. Rg3 {[%emt 0:04:33]} Nf5 {[%emt 0:00:52]} 23. Bxf5 {[%emt 0:01:34]} Qxf5 {[%emt 0:00:07]} 24. d3 {[%emt 0:04:26]} f6 {[%emt 0:05:10]} 25. h3 {[%emt 0:02:49]} h5 {[%emt 0:00:37]} 26. Kh2 {[%emt 0:01:42]} Kg7 {[%emt 0:04:55]} 27. a4 {[%emt 0:00:49]} Kh7 {[%emt 0:01:39]} 28. Ba1 {[%emt 0:00:17]} a6 {[%emt 0:00:00]} 29. Rd1 {[%emt 0:02:20]} Be3 {[%emt 0:02:25]} 30. Ne2 {[%emt 0:01:30]} Bc5 {[%emt 0:00:08]} 31. Rd2 {[%emt 0:02:09]} Rxe2 {[%emt 0:03:08]} 32. Rxe2 {[%emt 0:00:42]} 1/2-1/2

[Event "Turkish Club Cup 2019"]
[Site "Konya"]
[Date "2019.07.18"]
[Round "4"]
[White "Guder, Eyup Sabri"]
[Black "Coban, Suleyman"]
[Result "1-0"]
[ECO "D78"]
[WhiteElo "1909"]
[BlackElo "1667"]
[Annotator "NA RC"]
[PlyCount "95"]
[EventDate "2019.07.16"]
[EventType "team-tourn"]
[EventCountry "TUR"]
[SourceTitle "playchess.com"]
[Source "ChessBase"]
[SourceQuality "1"]
[TimeControl "5400+30"]

1. d4 {[%emt 0:00:30]} d5 {[%emt 0:00:30]} 2. Nf3 {[%emt 0:00:00]} g6 {[%emt 0:00:30]} 3. g3 {[%emt 0:00:00]} Bg7 {[%emt 0:00:00]} 4. Bg2 {[%emt 0:00:30]} Nf6 {[%emt 0:00:00]} 5. O-O {[%emt 0:00:00]} O-O {[%emt 0:02:30]} 6. c4 {[%emt 0:00:00]} c6 {[%emt 0:01:30]} 7. Nc3 {[%emt 0:02:30]} Bf5 {[%emt 0:07:30]} 8. Ne5 {[%emt 0:00:30]} Be6 {[%emt 0:11:30]} 9. Qb3 {[%emt 0:05:30]} Qb6 {[%emt 0:04:30]} 10. Qxb6 {[%emt 0:08:30]} axb6 {[%emt 0:00:30]} 11. cxd5 {[%emt 0:00:30]} Nxd5 {[%emt 0:02:30]} 12. Nxd5 {[%emt 0:02:30]} Bxd5 {[%emt 0:02:30]} 13. Bxd5 {[%emt 0:04:30]} cxd5 {[%emt 0:00:00]} 14. Rd1 {[%emt 0:06:30]} Rc8 {[%emt 0:11:00]} 15. Bd2 {[%emt 0:14:30]} Bxe5 {[%emt 0:08:30]} 16. dxe5 {[%emt 0:00:00]} Nd7 {[%emt 0:01:30]} 17. Bb4 {[%emt 0:01:00]} e6 {[%emt 0:02:30]} 18. f4 {[%emt 0:07:30]} Rc2 {[%emt 0:05:30]} 19. Rd2 {[%emt 0:04:30]} Rxd2 {[%emt 0:04:30]} 20. Bxd2 {[%emt 0:00:00]} Nc5 {[%emt 0:00:00]} 21. a3 {[%emt 0:01:00]} Nb3 {[%emt 0:08:00]} 22. Rd1 {[%emt 0:01:30]} Nxd2 {[%emt 0:03:30]} 23. Rxd2 {[%emt 0:00:30]} Rc8 {[%emt 0:00:00]} 24. Kf2 {[%emt 0:00:30]} Kf8 {[%emt 0:05:01]} 25. Ke3 {[%emt 0:00:30]} Ke7 {[%emt 0:01:28]} 26. Kd3 {[%emt 0:02:30]} Kd7 {[%emt 0:01:23]} 27. e4 {[%emt 0:01:30]} dxe4+ {[%emt 0:07:44]} 28. Kxe4+ {[%emt 0:00:00]} Ke7 {[%emt 0:04:34]} 29. Rd6 {[%emt 0:03:00]} Rb8 {[%emt 0:01:54]} 30. Rxb6 {[%emt 0:00:30]} Kd7 {[%emt 0:00:00]} 31. Rb3 {[%emt 0:01:30]} Kc7 {[%emt 0:00:06]} 32. g4 {[%emt 0:00:30]} Rh8 {[%emt 0:02:33]} 33. Rc3+ {[%emt 0:01:30]} Kd7 {[%emt 0:00:11]} 34. Kd4 {[%emt 0:00:30]} h5 {[%emt 0:00:41]} 35. Rh3 {[%emt 0:00:30]} Rc8 {[%emt 0:00:56]} 36. gxh5 {[%emt 0:00:30]} gxh5 {[%emt 0:00:03]} 37. Rb3 {[%emt 0:04:30]} Rb8 {[%emt 0:00:36]} 38. a4 {[%emt 0:00:30]} Kc7 {[%emt 0:00:11]} 39. Rh3 {[%emt 0:00:30]} Rd8+ {[%emt 0:01:42]} 40. Kc3 {[%emt 0:00:00]} Rh8 {[%emt 0:00:20]} 41. Rg3 {[%emt 0:00:00]} Kd7 {[%emt 0:01:00]} 42. Kb4 {[%emt 0:01:30]} Rc8 {[%emt 0:00:07]} 43. Rd3+ {[%emt 0:00:00]} Ke7 {[%emt 0:00:10]} 44. Rc3 {[%emt 0:01:00]} Rg8 {[%emt 0:02:17]} 45. Rc7+ {[%emt 0:00:00]} Kd8 {[%emt 0:00:26]} 46. Rxb7 {[%emt 0:00:00]} Rg2 {[%emt 0:00:00]} 47. b3 {[%emt 0:00:30]} Rxh2 {[%emt 0:00:34]} 48. a5 {[%emt 0:00:30]} 1-0